[Event "FRA-ch Youth U20W 2019"]
[Site "Hyeres"]
[Date "2019.04.14"]
[Round "1.1"]
[White "Aubert, Laurane"]
[Black "Budak, Lori"]
[Result "0-1"]
[ECO "B23"]
[WhiteElo "1953"]
[BlackElo "1679"]
[Annotator "NA"]
[PlyCount "148"]
[EventDate "2019.04.14"]
[EventType "swiss"]
[EventCountry "FRA"]
[SourceTitle "playchess.com"]
[Source "ChessBase"]
[SourceQuality "1"]
[TimeControl "5400+30"]

1. e4 {[%emt 0:00:00]} c5 {[%emt 0:00:00]} 2. Nc3 {[%emt 0:00:00]} g6 {[%emt 0:00:00]} 3. f4 {[%emt 0:09:41]} Bg7 {[%emt 0:00:23]} 4. Nf3 {[%emt 0:00:06]} e6 {[%emt 0:07:48]} 5. Bc4 {[%emt 0:01:06]} Nc6 {[%emt 0:00:42]} 6. O-O {[%emt 0:01:07]} Nge7 {[%emt 0:00:37]} 7. f5 {[%emt 0:20:18]} gxf5 {[%emt 0:11:07]} 8. d3 {[%emt 0:05:13]} a6 {[%emt 0:31:29]} 9. a4 {[%emt 0:13:05]} h5 {[%emt 0:07:20]} 10. Qe1 {[%emt 0:04:14]} Qc7 {[%emt 0:07:51]} 11. Bg5 {[%emt 0:08:47]} f6 {[%emt 0:06:12]} 12. Bd2 {[%emt 0:05:36]} f4 {[%emt 0:05:13]} 13. Nh4 {[%emt 0:05:13]} Bh6 {[%emt 0:00:10]} 14. Qf2 {[%emt 0:03:52]} e5 {[%emt 0:07:59]} 15. Qxc5 {[%emt 0:01:34]} Bg5 {[%emt 0:08:24]} 16. Qf2 {[%emt 0:03:09]} Nd4 {[%emt 0:00:47]} 17. Rac1 {[%emt 0:05:37]} d6 {[%emt 0:00:41]} 18. Kh1 {[%emt 0:05:18]} Be6 {[%emt 0:00:22]} 19. Nd5 {[%emt 0:01:46]} Bxd5 {[%emt 0:00:39]} 20. exd5 {[%emt 0:00:37]} Kf7 {[%emt 0:01:19]} 21. c3 {[%emt 0:00:59]} Ndf5 {[%emt 0:00:44]} 22. Nf3 {[%emt 0:00:35]} Rag8 {[%emt 0:00:26]} 23. Bb3 {[%emt 0:01:21]} h4 {[%emt 0:00:13]} 24. d4 {[%emt 0:01:41]} Ng3+ {[%emt 0:00:29]} 25. Kg1 {[%emt 0:00:24]} Nxf1 {[%emt 0:00:14]} 26. Kxf1 {[%emt 0:00:41]} e4 {[%emt 0:00:29]} 27. Nxg5+ {[%emt 0:00:39]} fxg5 {[%emt 0:00:02]} 28. Re1 {[%emt 0:00:41]} Re8 {[%emt 0:01:28]} 29. Rxe4 {[%emt 0:00:19]} Nf5 {[%emt 0:00:30]} 30. Re6 {[%emt 0:00:34]} Re7 {[%emt 0:00:43]} 31. Qf3 {[%emt 0:00:18]} Rxe6 {[%emt 0:00:31]} 32. dxe6+ {[%emt 0:00:05]} Ke7 {[%emt 0:00:32]} 33. Qg4 {[%emt 0:00:32]} Kf6 {[%emt 0:00:27]} 34. d5 {[%emt 0:00:40]} Qb6 {[%emt 0:00:16]} 35. Bc2 {[%emt 0:00:27]} Ne7 {[%emt 0:00:39]} 36. b3 {[%emt 0:00:57]} Qc5 {[%emt 0:00:33]} 37. c4 {[%emt 0:00:26]} Qd4 {[%emt 0:00:29]} 38. Qe2 {[%emt 0:00:36]} Qa1+ {[%emt 0:00:23]} 39. Qe1 {[%emt 0:00:36]} Qxe1+ {[%emt 0:00:39]} 40. Bxe1 {[%emt 0:00:07]} Ng6 {[%emt 0:00:35]} 41. Bc3+ {[%emt 0:00:54]} Ne5 {[%emt 0:00:02]} 42. Kf2 {[%emt 0:00:24]} g4 {[%emt 0:00:34]} 43. Bd1 {[%emt 0:00:40]} Rg8 {[%emt 0:00:24]} 44. g3 {[%emt 0:00:24]} fxg3+ {[%emt 0:00:28]} 45. hxg3 {[%emt 0:00:09]} h3 {[%emt 0:00:19]} 46. Kg1 {[%emt 0:00:29]} Rg5 {[%emt 0:00:44]} 47. b4 {[%emt 0:00:50]} Kf5 {[%emt 0:00:21]} 48. Bc2+ {[%emt 0:00:14]} Kf6 {[%emt 0:00:10]} 49. Bd1 {[%emt 0:00:03]} Ke7 {[%emt 0:00:44]} 50. Bxe5 {[%emt 0:01:07]} Rxe5 {[%emt 0:01:11]} 51. Bxg4 {[%emt 0:00:05]} Re4 {[%emt 0:00:15]} 52. Bxh3 {[%emt 0:00:07]} Rxc4 {[%emt 0:00:08]} 53. b5 {[%emt 0:00:17]} axb5 {[%emt 0:00:23]} 54. axb5 {[%emt 0:00:04]} Rc5 {[%emt 0:00:09]} 55. Bg2 {[%emt 0:00:06]} Rxb5 {[%emt 0:00:14]} 56. Kf2 {[%emt 0:00:10]} Rb2+ {[%emt 0:00:18]} 57. Kg1 {[%emt 0:01:56]} b5 {[%emt 0:00:14]} 58. Be4 {[%emt 0:00:46]} b4 {[%emt 0:00:29]} 59. Kf1 {[%emt 0:00:18]} Rd2 {[%emt 0:01:15]} 60. Ke1 {[%emt 0:00:25]} Rd4 {[%emt 0:00:18]} 61. Bc2 {[%emt 0:01:02]} Rxd5 {[%emt 0:00:34]} 62. Ke2 {[%emt 0:00:15]} Re5+ {[%emt 0:01:10]} 63. Kd3 {[%emt 0:00:08]} Rc5 {[%emt 0:00:42]} 64. g4 {[%emt 0:01:33]} Kxe6 {[%emt 0:00:28]} 65. Bb3+ {[%emt 0:00:10]} Ke5 {[%emt 0:00:51]} 66. Bd1 {[%emt 0:00:33]} Rc3+ {[%emt 0:00:22]} 67. Kd2 {[%emt 0:00:04]} Kd4 {[%emt 0:00:36]} 68. Bc2 {[%emt 0:00:23]} Rg3 {[%emt 0:00:24]} 69. Bd1 {[%emt 0:00:53]} Rg2+ {[%emt 0:00:26]} 70. Kc1 {[%emt 0:00:08]} Kc3 {[%emt 0:00:18]} 71. Bf3 {[%emt 0:00:42]} Rg1+ {[%emt 0:00:14]} 72. Bd1 {[%emt 0:00:04]} b3 {[%emt 0:00:18]} 73. g5 {[%emt 0:00:05]} b2+ {[%emt 0:00:18]} 74. Kb1 {[%emt 0:00:07]} Rxd1+ {[%emt 0:00:09]} 0-1

[Event "FRA-ch Youth U20W 2019"]
[Site "Hyeres"]
[Date "2019.04.14"]
[Round "1.2"]
[White "Sonet, Sandy"]
[Black "Fretel, Liza"]
[Result "1-0"]
[ECO "A57"]
[WhiteElo "1616"]
[BlackElo "1892"]
[Annotator "NA"]
[PlyCount "76"]
[EventDate "2019.04.14"]
[EventType "swiss"]
[EventCountry "FRA"]
[SourceTitle "playchess.com"]
[Source "ChessBase"]
[SourceQuality "1"]
[TimeControl "5400+30"]

1. d4 {[%emt 0:00:00]} Nf6 {[%emt 0:00:00]} 2. c4 {[%emt 0:00:00]} c5 {[%emt 0:00:00]} 3. d5 {[%emt 0:00:00]} b5 {[%emt 0:00:12]} 4. cxb5 {[%emt 0:00:00]} a6 {[%emt 0:00:10]} 5. b6 {[%emt 0:00:00]} e6 {[%emt 0:00:22]} 6. Nc3 {[%emt 0:02:11]} Nxd5 {[%emt 0:01:38]} 7. Nxd5 {[%emt 0:07:33]} exd5 {[%emt 0:00:05]} 8. Qxd5 {[%emt 0:02:15]} Nc6 {[%emt 0:00:08]} 9. Nf3 {[%emt 0:09:15]} Bb7 {[%emt 0:03:44]} 10. Bf4 {[%emt 0:09:40]} Qxb6 {[%emt 0:17:57]} 11. Ne5 {[%emt 0:26:48]} Nxe5 {[%emt 0:00:36]} 12. Qxe5+ {[%emt 0:00:26]} Qe6 {[%emt 0:05:55]} 13. Qc3 {[%emt 0:02:40]} Be7 {[%emt 0:05:16]} 14. e3 {[%emt 0:11:27]} Bf6 {[%emt 0:01:37]} 15. Qc2 {[%emt 0:00:14]} O-O {[%emt 0:06:06]} 16. Bd3 {[%emt 0:04:24]} g6 {[%emt 0:01:14]} 17. O-O {[%emt 0:01:02]} Rac8 {[%emt 0:01:51]} 18. Rad1 {[%emt 0:06:51]} c4 {[%emt 0:03:59]} 19. Be2 {[%emt 0:00:20]} Be4 {[%emt 0:11:03]} 20. Qa4 {[%emt 0:01:17]} Bxb2 {[%emt 0:07:04]} 21. Rd6 {[%emt 0:01:49]} Qe7 {[%emt 0:07:49]} 22. Bxc4 {[%emt 0:02:25]} Bc6 {[%emt 0:01:16]} 23. Qd1 {[%emt 0:04:05]} a5 {[%emt 0:04:57]} 24. Qg4 {[%emt 0:01:58]} Be5 {[%emt 0:08:39]} 25. Bxe5 {[%emt 0:00:47]} Qxe5 {[%emt 0:00:05]} 26. Rfd1 {[%emt 0:01:53]} Be4 {[%emt 0:01:35]} 27. Bb3 {[%emt 0:01:19]} Bf5 {[%emt 0:00:55]} 28. Qe2 {[%emt 0:01:21]} Rfe8 {[%emt 0:03:41]} 29. R6d5 {[%emt 0:01:07]} Qc3 {[%emt 0:00:34]} 30. Qf3 {[%emt 0:00:30]} Be4 {[%emt 0:02:21]} 31. Qf4 {[%emt 0:01:01]} Bxd5 {[%emt 0:00:29]} 32. Bxd5 {[%emt 0:00:09]} Rf8 {[%emt 0:00:26]} 33. h4 {[%emt 0:00:43]} Qc2 {[%emt 0:00:47]} 34. Qg4 {[%emt 0:00:24]} h5 {[%emt 0:00:54]} 35. Qf3 {[%emt 0:00:10]} Qf5 {[%emt 0:00:52]} 36. Qxf5 {[%emt 0:00:56]} gxf5 {[%emt 0:00:07]} 37. Bb3 {[%emt 0:00:30]} Rc7 {[%emt 0:02:54]} 38. Rd5 {[%emt 0:00:12]} Ra8 {[%emt 0:01:42]} 1-0

[Event "FRA-ch Youth U20W 2019"]
[Site "Hyeres"]
[Date "2019.04.14"]
[Round "1.3"]
[White "Bellahcene, Anissa"]
[Black "Ranguin, Anna"]
[Result "0-1"]
[ECO "B22"]
[WhiteElo "1816"]
[BlackElo "1539"]
[Annotator "NA"]
[PlyCount "134"]
[EventDate "2019.04.14"]
[EventType "swiss"]
[EventCountry "FRA"]
[SourceTitle "playchess.com"]
[Source "ChessBase"]
[SourceQuality "1"]
[TimeControl "5400+30"]

1. e4 {[%emt 0:00:39]} c5 {[%emt 0:00:00]} 2. c3 {[%emt 0:00:43]} d5 {[%emt 0:00:25]} 3. exd5 {[%emt 0:00:19]} Qxd5 {[%emt 0:00:19]} 4. Na3 {[%emt 0:01:31]} a6 {[%emt 0:02:39]} 5. Nf3 {[%emt 0:00:20]} Bg4 {[%emt 0:00:50]} 6. Bc4 {[%emt 1:29:28]} Qe4+ {[%emt 0:01:45]} 7. Qe2 {[%emt 0:00:00]} Bxf3 {[%emt 0:03:35]} 8. gxf3 {[%emt 0:00:00]} Qxe2+ {[%emt 0:00:23]} 9. Kxe2 {[%emt 0:00:00]} e6 {[%emt 0:00:48]} 10. d3 {[%emt 0:00:00]} Nf6 {[%emt 0:02:25]} 11. Rg1 {[%emt 0:00:00]} Nc6 {[%emt 0:01:42]} 12. Bb3 {[%emt 0:00:00]} b5 {[%emt 0:01:54]} 13. Be3 {[%emt 0:00:00]} g6 {[%emt 0:06:59]} 14. c4 {[%emt 0:00:00]} Nd4+ {[%emt 0:04:20]} 15. Bxd4 {[%emt 0:00:00]} cxd4 {[%emt 0:00:11]} 16. cxb5 {[%emt 0:00:00]} Bxa3 {[%emt 0:00:11]} 17. bxa3 {[%emt 0:00:00]} axb5 {[%emt 0:00:17]} 18. Rg5 {[%emt 0:00:00]} Rxa3 {[%emt 0:06:05]} 19. Rxb5 {[%emt 0:00:00]} O-O {[%emt 0:01:06]} 20. Rc1 {[%emt 0:00:00]} Ra7 {[%emt 0:03:07]} 21. Rbc5 {[%emt 0:00:00]} Nh5 {[%emt 0:08:30]} 22. Rc7 {[%emt 0:00:00]} Nf4+ {[%emt 0:01:41]} 23. Kd2 {[%emt 0:00:00]} Ra5 {[%emt 0:01:21]} 24. R1c5 {[%emt 0:00:00]} Rxc5 {[%emt 0:02:12]} 25. Rxc5 {[%emt 0:00:00]} Ra8 {[%emt 0:02:10]} 26. a4 {[%emt 0:00:00]} Kf8 {[%emt 0:01:41]} 27. a5 {[%emt 0:00:00]} Ra7 {[%emt 0:01:34]} 28. Bc4 {[%emt 0:00:00]} Ke7 {[%emt 0:00:58]} 29. a6 {[%emt 0:00:00]} Kd6 {[%emt 0:00:41]} 30. Rc8 {[%emt 0:00:00]} Nd5 {[%emt 0:01:46]} 31. Rb8 {[%emt 0:00:00]} Nc7 {[%emt 0:01:31]} 32. Kc2 {[%emt 0:00:00]} Kc6 {[%emt 0:02:34]} 33. Rc8 {[%emt 0:00:00]} Kd7 {[%emt 0:00:48]} 34. Rh8 {[%emt 0:00:00]} h5 {[%emt 0:00:17]} 35. Rb8 {[%emt 0:00:00]} Nxa6 {[%emt 0:01:45]} 36. Bb5+ {[%emt 0:00:00]} Ke7 {[%emt 0:01:58]} 37. Re8+ {[%emt 0:00:00]} Kd6 {[%emt 0:03:10]} 38. Rd8+ {[%emt 0:00:00]} Ke5 {[%emt 0:01:34]} 39. f4+ {[%emt 0:00:00]} Kxf4 {[%emt 0:00:27]} 40. Rxd4+ {[%emt 0:00:00]} Kf3 {[%emt 0:02:49]} 41. Ra4 {[%emt 0:00:00]} Rc7+ {[%emt 0:00:30]} 42. Kd2 {[%emt 0:00:00]} Nc5 {[%emt 0:12:22]} 43. Ke1 {[%emt 0:00:53]} Nb3 {[%emt 0:02:39]} 44. Bc4 {[%emt 0:01:45]} Nd4 {[%emt 0:02:13]} 45. Bd5+ {[%emt 0:06:50]} exd5 {[%emt 0:00:47]} 46. Rxd4 {[%emt 0:00:02]} Rc1+ {[%emt 0:01:09]} 47. Kd2 {[%emt 0:00:30]} Rc5 {[%emt 0:00:09]} 48. Rb4 {[%emt 0:02:09]} f5 {[%emt 0:01:23]} 49. Rb6 {[%emt 0:01:42]} g5 {[%emt 0:02:50]} 50. Rg6 {[%emt 0:00:56]} g4 {[%emt 0:01:29]} 51. Rg5 {[%emt 0:00:43]} f4 {[%emt 0:00:11]} 52. Rxh5 {[%emt 0:01:50]} Kxf2 {[%emt 0:00:08]} 53. Rf5 {[%emt 0:00:33]} Kf3 {[%emt 0:00:53]} 54. d4 {[%emt 0:03:42]} Ra5 {[%emt 0:00:23]} 55. Rh5 {[%emt 0:00:38]} g3 {[%emt 0:01:32]} 56. hxg3 {[%emt 0:00:24]} fxg3 {[%emt 0:00:06]} 57. Rf5+ {[%emt 0:00:33]} Kg2 {[%emt 0:00:54]} 58. Ke3 {[%emt 0:01:26]} Kh1 {[%emt 0:01:04]} 59. Rh5+ {[%emt 0:00:59]} Kg1 {[%emt 0:00:08]} 60. Kf3 {[%emt 0:00:52]} g2 {[%emt 0:01:34]} 61. Rg5 {[%emt 0:00:07]} Ra3+ {[%emt 0:00:54]} 62. Ke2 {[%emt 0:00:00]} Ra2+ {[%emt 0:00:16]} 63. Ke3 {[%emt 0:00:18]} Kf1 {[%emt 0:00:51]} 64. Rf5+ {[%emt 0:00:04]} Ke1 {[%emt 0:00:33]} 65. Rg5 {[%emt 0:00:13]} Ra3+ {[%emt 0:00:17]} 66. Kf4 {[%emt 0:00:01]} Kf2 {[%emt 0:00:15]} 67. Ke5 {[%emt 0:00:24]} Rg3 {[%emt 0:02:47]} 0-1

[Event "FRA-ch Youth U20W 2019"]
[Site "Hyeres"]
[Date "2019.04.14"]
[Round "1.4"]
[White "Fromherz, Audrey"]
[Black "Pigeat, Typhaine"]
[Result "0-1"]
[ECO "B28"]
[WhiteElo "1531"]
[BlackElo "1742"]
[Annotator "NA"]
[PlyCount "76"]
[EventDate "2019.04.14"]
[EventType "swiss"]
[EventCountry "FRA"]
[SourceTitle "playchess.com"]
[Source "ChessBase"]
[SourceQuality "1"]
[TimeControl "5400+30"]

1. e4 {[%emt 0:00:00]} c5 {[%emt 0:00:00]} 2. Nf3 {[%emt 0:00:15]} Nc6 {[%emt 0:00:00]} 3. d4 {[%emt 0:00:21]} cxd4 {[%emt 0:00:09]} 4. Nxd4 {[%emt 0:00:08]} a6 {[%emt 0:00:37]} 5. c4 {[%emt 0:00:57]} d6 {[%emt 0:02:12]} 6. Nc3 {[%emt 0:01:59]} g6 {[%emt 0:02:31]} 7. Be2 {[%emt 0:04:54]} Rb8 {[%emt 0:17:11]} 8. Be3 {[%emt 0:11:46]} Bg7 {[%emt 0:02:27]} 9. Rb1 {[%emt 0:07:33]} Nf6 {[%emt 0:04:24]} 10. f3 {[%emt 0:02:35]} Be6 {[%emt 0:20:09]} 11. Qd2 {[%emt 0:20:12]} Qc8 {[%emt 0:08:53]} 12. Nd5 {[%emt 0:10:14]} Nd7 {[%emt 0:08:15]} 13. f4 {[%emt 0:08:57]} Nc5 {[%emt 0:05:30]} 14. Nxe6 {[%emt 0:04:45]} fxe6 {[%emt 0:05:55]} 15. Nc3 {[%emt 0:03:13]} O-O {[%emt 0:11:34]} 16. Bf3 {[%emt 0:05:18]} Qc7 {[%emt 0:01:31]} 17. b4 {[%emt 0:03:02]} Nd7 {[%emt 0:01:00]} 18. O-O {[%emt 0:00:34]} Nd8 {[%emt 0:02:16]} 19. Be2 {[%emt 0:01:24]} b6 {[%emt 0:01:21]} 20. Rbd1 {[%emt 0:01:14]} Qb7 {[%emt 0:01:14]} 21. e5 {[%emt 0:00:53]} Nf7 {[%emt 0:01:29]} 22. Bg4 {[%emt 0:00:47]} Nd8 {[%emt 0:01:20]} 23. Nb1 {[%emt 0:03:06]} Rc8 {[%emt 0:00:45]} 24. Na3 {[%emt 0:01:01]} Nb8 {[%emt 0:00:45]} 25. exd6 {[%emt 0:00:37]} exd6 {[%emt 0:00:03]} 26. Qxd6 {[%emt 0:00:22]} Rc6 {[%emt 0:00:29]} 27. Qd3 {[%emt 0:00:49]} Qe7 {[%emt 0:00:34]} 28. Bf3 {[%emt 0:00:49]} Rc7 {[%emt 0:00:49]} 29. Bxb6 {[%emt 0:00:19]} Rd7 {[%emt 0:00:20]} 30. Qb3 {[%emt 0:00:57]} Rxd1 {[%emt 0:00:33]} 31. Rxd1 {[%emt 0:00:04]} Nd7 {[%emt 0:00:39]} 32. Be3 {[%emt 0:01:20]} e5 {[%emt 0:00:28]} 33. c5+ {[%emt 0:00:43]} Kh8 {[%emt 0:00:24]} 34. Qc4 {[%emt 0:02:27]} exf4 {[%emt 0:00:30]} 35. Bxf4 {[%emt 0:00:14]} Qf6 {[%emt 0:00:33]} 36. Rxd7 {[%emt 0:00:51]} Ne6 {[%emt 0:00:27]} 37. Bd6 {[%emt 0:00:43]} Qa1+ {[%emt 0:00:21]} 38. Qf1 {[%emt 0:01:44]} Bd4+ {[%emt 0:00:13]} 0-1

[Event "FRA-ch Youth U20W 2019"]
[Site "Hyeres"]
[Date "2019.04.14"]
[Round "1.5"]
[White "Aouachria, Marwa"]
[Black "Anastasie, Laure"]
[Result "1-0"]
[ECO "C68"]
[WhiteElo "1738"]
[BlackElo "1445"]
[Annotator "NA"]
[PlyCount "85"]
[EventDate "2019.04.14"]
[EventType "swiss"]
[EventCountry "FRA"]
[SourceTitle "playchess.com"]
[Source "ChessBase"]
[SourceQuality "1"]
[TimeControl "5400+30"]

1. e4 {[%emt 0:05:07]} e5 {[%emt 0:00:00]} 2. Nf3 {[%emt 0:00:16]} Nc6 {[%emt 0:00:00]} 3. Bb5 {[%emt 0:00:35]} a6 {[%emt 0:00:12]} 4. Bxc6 {[%emt 0:00:18]} bxc6 {[%emt 0:00:27]} 5. d3 {[%emt 0:01:16]} d6 {[%emt 0:01:24]} 6. h3 {[%emt 0:04:29]} g6 {[%emt 0:04:15]} 7. c3 {[%emt 0:04:17]} h6 {[%emt 0:05:16]} 8. d4 {[%emt 0:09:34]} exd4 {[%emt 0:05:45]} 9. Qxd4 {[%emt 0:02:00]} Nf6 {[%emt 0:05:03]} 10. e5 {[%emt 0:10:33]} c5 {[%emt 0:07:58]} 11. Qe3 {[%emt 0:02:58]} Nd5 {[%emt 0:05:33]} 12. Qe4 {[%emt 0:06:36]} Be6 {[%emt 0:03:08]} 13. exd6 {[%emt 0:02:43]} cxd6 {[%emt 0:01:33]} 14. O-O {[%emt 0:04:51]} Nc7 {[%emt 0:07:00]} 15. Rd1 {[%emt 0:09:55]} Qd7 {[%emt 0:04:56]} 16. Bf4 {[%emt 0:04:55]} O-O-O {[%emt 0:05:06]} 17. Na3 {[%emt 0:10:56]} Qe7 {[%emt 0:03:34]} 18. Qc6 {[%emt 0:04:44]} Qd7 {[%emt 0:07:02]} 19. Qe4 {[%emt 0:03:58]} Qe7 {[%emt 0:01:25]} 20. Re1 {[%emt 0:03:43]} g5 {[%emt 0:03:44]} 21. Bd2 {[%emt 0:02:24]} Qd7 {[%emt 0:04:57]} 22. b4 {[%emt 0:01:00]} Bg7 {[%emt 0:04:04]} 23. bxc5 {[%emt 0:01:34]} dxc5 {[%emt 0:02:05]} 24. Nc4 {[%emt 0:00:44]} Bxc4 {[%emt 0:00:24]} 25. Qxc4 {[%emt 0:00:02]} Qd5 {[%emt 0:02:36]} 26. Qa4 {[%emt 0:00:40]} Rhe8 {[%emt 0:01:29]} 27. Rab1 {[%emt 0:00:56]} Rxe1+ {[%emt 0:00:19]} 28. Rxe1 {[%emt 0:00:06]} Qd6 {[%emt 0:01:16]} 29. c4 {[%emt 0:00:27]} Bf6 {[%emt 0:04:36]} 30. Ba5 {[%emt 0:00:39]} Bd4 {[%emt 0:05:09]} 31. Rb1 {[%emt 0:02:24]} Bxf2+ {[%emt 0:02:48]} 32. Kxf2 {[%emt 0:00:20]} Rd7 {[%emt 0:01:35]} 33. Rb6 {[%emt 0:00:53]} Qe7 {[%emt 0:00:46]} 34. Rc6 {[%emt 0:00:14]} f6 {[%emt 0:00:41]} 35. Bxc7 {[%emt 0:00:08]} Rxc7 {[%emt 0:00:09]} 36. Qxa6+ {[%emt 0:00:09]} Kd7 {[%emt 0:00:22]} 37. Rxc7+ {[%emt 0:00:17]} Kxc7 {[%emt 0:00:15]} 38. Qa7+ {[%emt 0:00:08]} Kd6 {[%emt 0:00:16]} 39. Qxe7+ {[%emt 0:00:15]} Kxe7 {[%emt 0:00:03]} 40. Ke3 {[%emt 0:00:30]} Kd6 {[%emt 0:00:11]} 41. g4 {[%emt 0:00:45]} Kc6 {[%emt 0:00:24]} 42. Ke4 {[%emt 0:00:25]} Kb6 {[%emt 0:00:07]} 43. Kd5 {[%emt 0:00:11]} 1-0

[Event "FRA-ch Youth U20W 2019"]
[Site "Hyeres"]
[Date "2019.04.14"]
[Round "1.6"]
[White "Azan, Sarah"]
[Black "Milroy, Melena"]
[Result "0-1"]
[ECO "C24"]
[WhiteElo "1349"]
[BlackElo "1720"]
[Annotator "NA"]
[PlyCount "60"]
[EventDate "2019.04.14"]
[EventType "swiss"]
[EventCountry "FRA"]
[SourceTitle "playchess.com"]
[Source "ChessBase"]
[SourceQuality "1"]
[TimeControl "5400+30"]

1. e4 {[%emt 0:00:00]} d5 {[%emt 0:00:03]} 2. exd5 {[%emt 0:00:00]} Nf6 {[%emt 0:00:06]} 3. Bc4 {[%emt 0:00:42]} Nxd5 {[%emt 0:00:10]} 4. d3 {[%emt 0:00:22]} Nc6 {[%emt 0:02:18]} 5. Nf3 {[%emt 0:01:18]} e5 {[%emt 0:01:55]} 6. Bd2 {[%emt 0:02:43]} Bg4 {[%emt 0:05:14]} 7. h3 {[%emt 0:03:42]} Be6 {[%emt 0:03:52]} 8. Bxd5 {[%emt 0:13:14]} Qxd5 {[%emt 0:00:37]} 9. Nc3 {[%emt 0:00:59]} Qd7 {[%emt 0:02:02]} 10. Qe2 {[%emt 0:02:12]} f6 {[%emt 0:01:30]} 11. O-O-O {[%emt 0:01:34]} O-O-O {[%emt 0:00:27]} 12. Nh2 {[%emt 0:08:39]} Nb4 {[%emt 0:09:20]} 13. Kb1 {[%emt 0:02:59]} Nd5 {[%emt 0:00:47]} 14. Rhg1 {[%emt 0:05:36]} Bb4 {[%emt 0:01:37]} 15. Nxd5 {[%emt 0:03:18]} Bxd2 {[%emt 0:02:56]} 16. Qxd2 {[%emt 0:00:15]} Qxd5 {[%emt 0:00:20]} 17. b3 {[%emt 0:00:25]} Rd6 {[%emt 0:01:07]} 18. Qc3 {[%emt 0:07:04]} Rhd8 {[%emt 0:06:50]} 19. Nf3 {[%emt 0:02:15]} Rc6 {[%emt 0:01:38]} 20. Qb2 {[%emt 0:02:03]} Qc5 {[%emt 0:06:36]} 21. Rd2 {[%emt 0:01:26]} e4 {[%emt 0:05:04]} 22. d4 {[%emt 0:04:20]} Qa5 {[%emt 0:08:32]} 23. b4 {[%emt 0:03:01]} Bxa2+ {[%emt 0:01:56]} 24. Kc1 {[%emt 0:04:10]} Qa4 {[%emt 0:00:58]} 25. Nh4 {[%emt 0:02:04]} Rd5 {[%emt 0:05:19]} 26. g4 {[%emt 0:01:47]} a5 {[%emt 0:00:38]} 27. Nf5 {[%emt 0:01:53]} Kd7 {[%emt 0:03:04]} 28. bxa5 {[%emt 0:02:57]} Rb5 {[%emt 0:00:50]} 29. Qa1 {[%emt 0:00:50]} Qa3+ {[%emt 0:02:58]} 30. Kd1 {[%emt 0:00:37]} Rb1+ {[%emt 0:00:11]} 0-1

[Event "FRA-ch Youth U20W 2019"]
[Site "Hyeres"]
[Date "2019.04.15"]
[Round "2.1"]
[White "Pigeat, Typhaine"]
[Black "Sonet, Sandy"]
[Result "1-0"]
[ECO "B03"]
[WhiteElo "1742"]
[BlackElo "1616"]
[Annotator "NA RC"]
[PlyCount "63"]
[EventDate "2019.04.14"]
[EventType "swiss"]
[EventCountry "FRA"]
[SourceTitle "playchess.com"]
[Source "ChessBase"]
[SourceQuality "1"]
[TimeControl "5400+30"]

1. e4 {[%emt 0:00:00]} Nf6 {[%emt 0:00:00]} 2. e5 {[%emt 0:00:56]} Nd5 {[%emt 0:00:00]} 3. c4 {[%emt 0:00:42]} Nb6 {[%emt 0:00:00]} 4. d4 {[%emt 0:04:29]} d6 {[%emt 0:00:15]} 5. exd6 {[%emt 0:00:32]} cxd6 {[%emt 0:00:09]} 6. Nc3 {[%emt 0:01:02]} g6 {[%emt 0:00:10]} 7. Be3 {[%emt 0:01:32]} Bg7 {[%emt 0:00:25]} 8. Qc2 {[%emt 0:02:39]} O-O {[%emt 0:14:30]} 9. Rd1 {[%emt 0:04:49]} f5 {[%emt 0:21:33]} 10. g3 {[%emt 0:14:40]} Be6 {[%emt 0:16:55]} 11. c5 {[%emt 0:17:12]} dxc5 {[%emt 0:20:38]} 12. dxc5 {[%emt 0:02:00]} N6d7 {[%emt 0:00:06]} 13. Bg2 {[%emt 0:12:20]} Nc6 {[%emt 0:02:47]} 14. Nf3 {[%emt 0:08:05]} f4 {[%emt 0:08:32]} 15. gxf4 {[%emt 0:06:06]} Qe8 {[%emt 0:06:55]} 16. Ng5 {[%emt 0:03:48]} Bf7 {[%emt 0:03:32]} 17. Nxf7 {[%emt 0:01:40]} Rxf7 {[%emt 0:00:10]} 18. Qb3 {[%emt 0:00:49]} Nf6 {[%emt 0:01:45]} 19. Qxb7 {[%emt 0:04:38]} Rc8 {[%emt 0:00:03]} 20. Qb3 {[%emt 0:05:17]} Kh8 {[%emt 0:00:31]} 21. Nd5 {[%emt 0:03:22]} Ng4 {[%emt 0:00:41]} 22. O-O {[%emt 0:01:27]} Nxe3 {[%emt 0:00:22]} 23. fxe3 {[%emt 0:00:17]} e6 {[%emt 0:00:46]} 24. Nc3 {[%emt 0:00:25]} Ne7 {[%emt 0:00:30]} 25. Qxe6 {[%emt 0:01:06]} Rf6 {[%emt 0:00:36]} 26. Qb3 {[%emt 0:00:50]} Rxc5 {[%emt 0:00:25]} 27. Ne4 {[%emt 0:01:04]} Rb6 {[%emt 0:00:04]} 28. Qa3 {[%emt 0:01:13]} Rc2 {[%emt 0:00:50]} 29. b3 {[%emt 0:00:34]} Bb2 {[%emt 0:00:35]} 30. Qxa7 {[%emt 0:00:22]} Re6 {[%emt 0:00:39]} 31. Qd7 {[%emt 0:00:54]} Qf7 {[%emt 0:00:21]} 32. Ng5 {[%emt 0:00:25]} 1-0